Cogmind - Beta 15 @@@ ROGUE MODE // 2025.05.19 @ 13:54:38 Player: Waste Result: Destroyed by B-75 Beast with Magnetic Acceleration Cannon Performance ------------- Evolutions (5) 2500 Regions Visited (12) 2400 Robots Destroyed (192) 960 Value Destroyed (5866) 5866 Prototype IDs (21) 420 Alien Tech Used (1) 200 Bonus (1241) 1241 TOTAL SCORE: 13587 Bonus ------- High Alert Combat Kills 693 Follower Combat Kills 284 Met Data Miner 300 Friendly Fire -36 Cogmind --------- Core Integrity 0/1000 Matter 300/300 Energy 16/100 System Corruption 2% Temperature Hot (245) Movement Core (350) Ox6 Location -5/Extension Parts ------- > --- POWER (1) -------- (None) > --- PROPULSION (4) --- Gyrokinetic Inverter Gyrokinetic Inverter Gyrokinetic Inverter > --- UTILITY (10) ----- Large Storage Unit Enhanced Optical Array Improved Signal Interpreter Core Analyzer Improved Hacking Suite > --- WEAPON (2) ------- (None) > --- INVENTORY (15) --- High-capacity Matter Pod (200) Structural Scanner Experimental Sensor Array EM Shield Dynamic Insulation System Heavy Phase Cannon Rocket Array Rocket Array Power Sword Peak State ------------ > --- POWER ------------ Enhanced Fission Core > --- PROPULSION ------- Cooled Aerolev Unit Antigrav System Gyrokinetic Inverter Gyrokinetic Inverter > --- UTILITY ---------- Advanced Cooling System Large Storage Unit Enhanced Optical Array Improved Signal Interpreter Advanced Melee Analysis Suite Core Analyzer Improved Actuator Array Improved Utility Shielding Improved Hacking Suite Advanced System Shield > --- WEAPON ----------- Phasing Sabre Heavy Pick > --- INVENTORY -------- Micro Fission Core Gyrokinetic Inverter Gyrokinetic Inverter High-capacity Matter Pod Structural Scanner Experimental Sensor Array Layered Medium Armor Plating EM Shield Dynamic Insulation System Heavy Phase Cannon Rocket Array Rocket Array Power Sword [Rating: 91] Favorites ----------- Power Enhanced Nuclear Core Engine Cooled Ion Engine Power Core Enhanced Nuclear Core Propulsion Advanced Treads Treads Advanced Treads Leg Aluminum Leg Hover Unit Gravmag System Utility Improved Signal Interpreter Device Cooling System Storage High-capacity Storage Unit Processor Improved Signal Interpreter Hackware Hacking Suite Protection Hardened Medium Armor Plating Weapon Plasma Cannon Energy Gun Medium Laser Energy Cannon Plasma Cannon Ballistic Gun Assault Rifle Launcher Heavy Missile Launcher Slashing Weapon Axe Piercing Weapon Heavy Pick Build | -11 -10 -10 -9 -8 -7 -6 -6 -6 -6 -5 -5 -5 ------- Run | Yrd Mat Min Mat Mat Fac Fac Low Low Dat Pro Fac Ext Slots Evolved 10 | . . . 2 2 2 2 . . . . 2 . Power . | . . . . . . . . . . . . . Propulsion 2 | . . . 2 . . . . . . . . . Utility 8 | . . . . 2 2 2 . . . . 2 . Weapon . | . . . . . . . . . . . . . Parts Attached 116 | 1 5 7 18 23 24 7 . 2 3 2 14 10 Power 10 | . 1 1 2 2 2 . . . . . . 2 Engine 6 | . 1 1 2 2 . . . . . . . . Core 4 | . . . . . 2 . . . . . . 2 Reactor . | . . . . . . . . . . . . . Propulsion 41 | . 1 3 7 11 7 2 . 1 . . 6 3 Treads 20 | . . 1 6 11 2 . . . . . . . Leg 4 | . 1 2 1 . . . . . . . . . Wheel . | . . . . . . . . . . . . . Hover 17 | . . . . . 5 2 . 1 . . 6 3 Flight . | . . . . . . . . . . . . . Utility 40 | . 2 2 2 5 9 4 . . 3 2 7 4 Device 16 | . 1 2 1 3 4 . . . 1 . 2 2 Storage 4 | . 1 . 1 . 1 . . . . 1 . . Processor 7 | . . . . . 2 1 . . 2 . 2 . Hackware 5 | . . . . . 1 2 . . . . 1 1 Protection 8 | . . . . 2 1 1 . . . 1 2 1 Artifact . | . . . . . . . . . . . . . Weapon 25 | 1 1 1 7 5 6 1 . 1 . . 1 1 Energy Gun 3 | . 1 1 1 . . . . . . . . . Energy Cannon 8 | . . . 4 3 1 . . . . . . . Ballistic Gun 2 | 1 . . 1 . . . . . . . . . Ballistic Cannon . | . . . . . . . . . . . . . Launcher 7 | . . . 1 2 3 1 . . . . . . Special Weapon . | . . . . . . . . . . . . . Impact Weapon . | . . . . . . . . . . . . . Slashing Weapon 4 | . . . . . 2 . . 1 . . . 1 Piercing Weapon 1 | . . . . . . . . . . . 1 . Special Melee Weapon . | . . . . . . . . . . . . . Unidentified Prototypes 9 | . . 1 2 1 3 1 . . . 1 . . Parts Lost 35 | . . 4 1 6 3 1 . 1 . . 2 17 Power 4 | . . 1 . . . . . . . . . 3 Propulsion 12 | . . 1 1 2 2 1 . 1 . . . 4 Utility 13 | . . . . 3 1 . . . . . 2 7 Weapon 6 | . . 2 . 1 . . . . . . . 3 Highest Loss Streak 10 | . . 4 1 2 1 1 . 1 . . 1 10 To Critical Strikes . | . . . . . . . . . . . . . Average Backups 15 | 6 8 9 14 19 18 14 14 14 12 12 14 12 Power 1 | 1 1 2 1 2 1 1 1 1 1 1 1 1 Propulsion 2 | 4 3 2 2 3 1 1 1 . . . 2 . Utility 6 | . 1 3 5 7 9 7 8 9 8 7 6 6 Weapon 4 | 1 1 1 4 6 5 4 4 3 3 3 4 3 Tool/Special . | . . . . . . . . . . . . . Unused Backups 39 | . 5 2 10 9 7 1 . . . . 3 2 Power 5 | . . . 1 2 1 . . . . . 1 . Propulsion 6 | . 1 2 1 1 . . . . . . 1 . Utility 10 | . 1 . 1 1 4 1 . . . . 1 1 Weapon 18 | . 3 . 7 5 2 . . . . . . 1 Tool/Special . | . . . . . . . . . . . . . Average Slot Usage (%) 96 | . 98 97 96 99 97 88 93 93 97 94 95 94 Engine 4 | . 14 13 9 9 1 . . . . . . . Core 3 | . . . . . 5 6 6 6 6 6 5 4 Treads 15 | . . . 38 35 27 . . . . . . . Leg 4 | . 28 27 3 . . . . . . . . . Hover 9 | . . . . . 2 25 26 26 26 26 22 18 Device 14 | . 12 14 11 17 19 12 12 12 7 16 14 11 Storage 8 | . 14 14 11 9 7 6 6 6 6 6 5 5 Processor 8 | . . . . . 7 13 13 13 21 20 22 22 Hackware 6 | . . . . . 6 16 20 20 14 9 5 9 Protection 3 | . . . . 8 2 . . . 1 . 4 5 Energy Gun 1 | . 6 14 6 . . . . . . . . . Energy Cannon 6 | . . . 14 17 11 . . . . . . . Ballistic Gun 2 | . 21 13 . . . . . . . . . . Slashing Weapon 2 | . . . . . 1 5 6 6 10 6 8 5 Peak Build Rating 91 | 6 10 16 22 42 48 64 64 65 64 63 89 91 Average Rating 44 | 6 9 9 17 34 43 55 59 60 60 59 79 84 On Entrance 39 | 6 6 10 8 22 34 43 64 63 61 56 59 87 Naked Turns . | . . . . . . . . . . . . . Heaviest Build 77 | 11 20 20 58 77 70 40 47 47 39 40 47 55 Greatest Support 90 | 20 20 20 86 88 90 34 34 34 40 40 45 46 Greatest Overweight (x) 2 | . . . . . 1 1 1 1 1 . 2 1 Average Overweight (x) . | . . . . . . . . . . . . . Largest Inventory Capacity 20 | 8 10 10 20 20 20 15 15 15 15 15 15 15 Average Capacity 16 | 8 9 10 16 20 19 15 15 15 15 15 15 15 Most Carried 20 | 6 10 10 20 20 20 15 15 15 14 13 15 15 Average Carried 15 | 6 8 9 14 19 18 14 14 14 12 12 14 12 Final Capacity 20 | 8 10 10 20 20 15 15 15 15 15 15 15 15 Final Carried 20 | 6 10 8 20 17 14 14 14 14 12 13 15 9 Class Distribution -------------------- 42% | Mutant 18% | Hacker-Scout 15% | Scavenger-Mutant 9% | Scout 5% | Commander-Gladiator Dominant Class ---------------- Scavenger-Mutant | -10/Materials Scavenger-Mutant | -10/Mines Mutant | -9/Materials Mutant | -8/Materials Mutant | -7/Factory Hacker-Scout | -6/Factory Hacker-Scout | -6/Lower Caves Hacker-Scout | -6/Lower Caves Hacker-Gladiator | -6/Data Miner Scout | -5/Proximity Caves Scout | -5/Factory Commander-Gladiator | -5/Extension Resources | -11 -10 -10 -9 -8 -7 -6 -6 -6 -6 -5 -5 -5 ----------- Run | Yrd Mat Min Mat Mat Fac Fac Low Low Dat Pro Fac Ext Matter Collected 3692 | 200 205 243 303 513 487 224 36 208 . 300 382 591 Remotely . | . . . . . . . . . . . . . Salvage Created 7432 | . 243 256 575 2600 789 900 35 183 . 4 989 858 Parts 381 | . 22 19 44 138 39 29 5 8 . 5 42 30 Haulers Intercepted 14 | . 2 . 2 5 . 2 . . . . 3 . Recyclers Shooed 9 | . . . 3 2 1 2 . . . . 1 . Parts Field Recycled . | . . . . . . . . . . . . . Retrieved Matter . | . . . . . . . . . . . . . Parts Self-Destructed 12 | . . . . . . . 2 5 . 5 . . Prevented . | . . . . . . . . . . . . . Kills | -11 -10 -10 -9 -8 -7 -6 -6 -6 -6 -5 -5 -5 ------- Run | Yrd Mat Min Mat Mat Fac Fac Low Low Dat Pro Fac Ext Combat Hostiles Destroyed 140 | . 6 9 20 52 16 4 3 7 . 2 4 17 Melee 14 | . . . . . . . . . . . 4 10 Guns 18 | . 6 9 3 . . . . . . . . . Cannons 56 | . . . 7 38 11 . . . . . . . AOE 49 | . . . 10 12 4 4 3 7 . 2 . 7 Classes Destroyed 19 | . 4 . 3 7 2 . . 1 . 1 1 . Worker 9 | . . . 2 1 1 3 . . . . 2 . Builder 6 | . . . . 4 . 1 . . . . 1 . Tunneler 1 | . . . . . . . . . . . 1 . Hauler 14 | . 2 . 2 5 . 2 . . . . 3 . Recycler 10 | . . . . 2 . 4 . . . . 2 2 Mechanic 1 | . . . . 1 . . . . . . . . Operator 3 | . . . . 1 1 1 . . . . . . Drone 2 | . . . . . . . . . . 2 . . Watcher 8 | . 1 . 2 2 1 1 . . . . 1 . Swarmer 42 | . 4 6 11 6 . 3 3 7 . . . 2 Grunt 57 | . 2 2 5 30 9 1 . . . . 1 7 Brawler 4 | . . . . 3 1 . . . . . . . Duelist 3 | . . . 1 1 . . . . . . . 1 Protector 2 | . . . . 2 . . . . . . . . Sentry 19 | . . . 3 9 2 . . . . . . 5 Hunter 1 | . . . . . 1 . . . . . . . Programmer 6 | . . . . . 3 . . . . . 3 . Heavy 1 | . . . . 1 . . . . . . . . Samaritan 2 | . . . . . . . . 2 . . . . Thug 2 | . . . . . . . . . . . . 2 Best Kill Streak 8 | . 3 3 7 6 8 5 3 4 . 2 2 7 Combat Bots Only 6 | . 3 3 5 5 6 4 3 4 . 2 1 5 Max Kills in Single Turn 3 | . 1 1 3 3 3 3 2 3 . 1 1 3 Gunslinging . | . . . . . . . . . . . . . Exploded 3 | . . . 2 2 3 3 2 2 . 1 . 3 Melee 2 | . . . . . . . . . . . 1 2 Uniques/NPCs Destroyed 1 | . . 1 . . . . . . . . . . YI-UF0 (-10/Mines) Combat | -11 -10 -10 -9 -8 -7 -6 -6 -6 -6 -5 -5 -5 -------- Run | Yrd Mat Min Mat Mat Fac Fac Low Low Dat Pro Fac Ext Hostile Shots Fired 722 | . 24 58 67 171 133 44 4 12 2 . 29 178 Missed 237 | . 9 27 17 51 46 22 2 6 2 . 11 44 Hits 485 | . 15 31 50 120 87 22 2 6 . . 18 134 Melee 6 | . . . . 6 . . . . . . . . Projectile 479 | . 15 31 50 114 87 22 2 6 . . 18 134 AOE 17 | . . 17 . . . . . . . . . . Critical Strikes 17 | . . . . 4 6 3 . . . . 1 3 Part Disruptions 1 | . . . . . 1 . . . . . . . Damage Taken 8449 | . 154 680 604 2155 1105 353 74 171 . . 279 2874 Core 1820 | . 35 168 122 232 97 84 28 30 . . 46 978 Absorbed by Shields . | . . . . . . . . . . . . . Redirected to Shielding 109 | . . . . . . . . . . . 13 96 Ignored by Resistances 82 | . . . . . . . . . . . 82 . Regen/Repaired (Parts) 9 | . . . . . . 9 . . . . . . Core Remaining (%) 68 | 100 . 18 69 57 86 . . . . 83 . . Volleys Fired 294 | . 22 26 35 124 56 5 5 6 . 5 . 10 Largest 2 | . 2 2 2 2 2 1 1 1 . 1 . 1 Hottest 160 | . 70 70 136 160 160 43 39 39 . 45 . 45 Shots Fired 519 | . 44 45 61 233 105 5 5 6 . 5 . 10 Gun 105 | . 44 45 16 . . . . . . . . . Cannon 356 | . . . 37 219 100 . . . . . . . Launcher 58 | . . . 8 14 5 5 5 6 . 5 . 10 Special . | . . . . . . . . . . . . . Kinetic 60 | . 41 19 . . . . . . . . . . Thermal 401 | . 3 26 53 219 100 . . . . . . . Explosive 58 | . . . 8 14 5 5 5 6 . 5 . 10 Electromagnetic . | . . . . . . . . . . . . . Robot Hit Streak 15 | . 7 12 7 15 14 1 1 2 . 3 . 13 Robot Miss Streak 3 | . 1 2 3 3 2 2 3 2 . 2 . 3 Penetration Max . | . . . . . . . . . . . . . Secondary Targets 2 | . 1 1 . . . . . . . . . . Max Gunslinging Chain 1 | . 1 1 . . . . . . . . . . Shots Hit Robots 430 | . 30 30 41 153 69 32 1 3 1 1 35 34 Core Hits 307 | . 15 15 31 103 29 23 3 14 . 4 16 54 Critical Kills 2 | . . . . 1 1 . . . . . . . Critical Parts Destroyed . | . . . . . . . . . . . . . Critical Strikes 18 | . . 1 . 1 1 4 . . . . 7 4 Burn 1 | . . 1 . . . . . . . . . . Meltdown 2 | . . . . 1 1 . . . . . . . Sever 12 | . . . . . . 4 . . . . 7 1 Impale 3 | . . . . . . . . . . . . 3 Melee Attacks 212 | . . . . . 4 54 2 3 33 7 61 48 Impact . | . . . . . . . . . . . . . Slashing 191 | . . . . . 4 54 2 3 33 7 57 31 Piercing 21 | . . . . . . . . . . . 4 17 Sneak Attacks 23 | . . . . . . 11 . . 1 . 11 . Combat Hostiles . | . . . . . . . . . . . . . Follow-up Attacks 12 | . . . . . . . . . . . 5 7 Damage Inflicted 17724 | . 365 389 1336 5520 2309 2361 196 1003 77 68 1908 2192 Guns 898 | . 330 389 179 . . . . . . . . . Cannons 6170 | . . . 589 3764 1817 . . . . . . . Explosions 5859 | . . . 540 1650 492 807 196 914 . 68 . 1192 Melee 4628 | . . . . . . 1554 . 89 77 . 1908 1000 Ramming 169 | . 35 . 28 106 . . . . . . . . Kinetic 447 | . 317 130 . . . . . . . . . . Thermal 6863 | . 13 259 768 3953 1817 53 . . . . . . Explosive 5617 | . . . 540 1461 492 754 196 914 . 68 . 1192 Electromagnetic . | . . . . . . . . . . . . . Impact . | . . . . . . . . . . . . . Slashing 4090 | . . . . . . 1554 . 89 77 . 1815 555 Piercing 538 | . . . . . . . . . . . 93 445 Highest Corruption 5 | . . . 1 5 4 . . . . . 2 2 Average Corruption 3 | . . . 1 5 2 . . . . . 2 2 Corruption Purged . | . . . . . . . . . . . . . Corruption Blocked . | . . . . . . . . . . . . . Effects 63 | . . . 2 25 11 . . . . . 9 16 Message Errors 19 | . . . . 7 4 . . . . . 3 5 Matter Fused 13 | . . . 1 6 2 . . . . . 2 2 Heat Flow Errors 6 | . . . . 2 2 . . . . . . 2 Energy Discharges 9 | . . . 1 4 . . . . . . 1 3 Parts Rejected 1 | . . . . . . . . . . . . 1 Parts Fused 3 | . . . . 1 . . . . . . 2 . Data Loss (minor) 4 | . . . . 3 . . . . . . 1 . Data Loss (major) 4 | . . . . 2 . . . . . . . 2 Misfires 2 | . . . . . 2 . . . . . . . Alerts 1 | . . . . . . . . . . . . 1 Weapon Failures 1 | . . . . . 1 . . . . . . . Overload Shots . | . . . . . . . . . . . . . Overflow Damage 621 | . . . 21 51 78 126 . 103 17 . 169 56 Projectiles 100 | . . . 21 30 49 . . . . . . . Explosions 180 | . . . . 21 29 4 . 103 . . . 23 Melee 341 | . . . . . . 122 . . 17 . 169 33 Knockbacks 1 | . . . . 1 . . . . . . . . Impact 1 | . . . . 1 . . . . . . . . Kinetic . | . . . . . . . . . . . . . Secondary . | . . . . . . . . . . . . . Self-Inflicted Damage 373 | . . . 52 200 . 3 46 68 . . . 4 Shots 16 | . . . 4 7 . 1 1 2 . . . 1 Rammed 14 | . . . 4 10 . . . . . . . . Targets Rammed 26 | . 8 1 4 13 . . . . . . . . Kicked 9 | . 8 1 . . . . . . . . . . Crushed 3 | . . . . 3 . . . . . . . . Highest Temperature 313 | . . 1 27 220 235 40 . . . . 3 313 Average Temperature 45 | . . 1 12 21 61 17 . . . . 3 74 Received Heat Transfer 2379 | . 18 45 81 855 342 115 . . . . 27 896 Siege Activations . | . . . . . . . . . . . . . Martial Activations . | . . . . . . . . . . . . . Shielding Activations . | . . . . . . . . . . . . . Robots Disrupted . | . . . . . . . . . . . . . Combat Hostiles . | . . . . . . . . . . . . . Robots Corrupted . | . . . . . . . . . . . . . Combat Hostiles . | . . . . . . . . . . . . . Parts Fried . | . . . . . . . . . . . . . Impact Corruptions . | . . . . . . . . . . . . . Robots Melted 3 | . . . . 2 1 . . . . . . . Combat Hostiles 3 | . . . . 2 1 . . . . . . . Parts Melted 23 | . . 2 2 15 4 . . . . . . . Heat Transferred 13065 | . 37 814 1406 7358 3400 50 . . . . . . Parts Sabotaged . | . . . . . . . . . . . . . Parts Stolen . | . . . . . . . . . . . . . Parts Stripped . | . . . . . . . . . . . . . Power Chain Reactions . | . . . . . . . . . . . . . Alert | -11 -10 -10 -9 -8 -7 -6 -6 -6 -6 -5 -5 -5 ------- Run | Yrd Mat Min Mat Mat Fac Fac Low Low Dat Pro Fac Ext Maximum Alert Level 4 | . . . 1 4 2 1 . . . . . 2 Low Security (%) 44 | 100 100 100 82 3 . 77 . . . . 100 8 Level 1 29 | . . . 17 27 60 22 . . . . . 76 Level 2 19 | . . . . 40 39 . . . . . . 15 Level 3 5 | . . . . 21 . . . . . . . . Level 4 1 | . . . . 6 . . . . . . . . Level 5 . | . . . . . . . . . . . . . High Security . | . . . . . . . . . . . . . Max Security . | . . . . . . . . . . . . . Sterilizations 1 | . . . . 1 . . . . . . . . Peak Influence 1136 | . 70 105 265 1136 514 231 . . . . 150 454 Initial 514 | . . . . 108 514 230 . . . . 150 9 Average 290 | . 8 50 119 593 388 132 . . . . 83 311 Influence Increases 5265 | . 172 235 577 1730 554 461 70 165 . 10 413 878 Destroy 0b10 Robot/C 2840 | . 120 160 400 1000 320 80 60 140 . . 80 480 Destroy 0b10 Robot/NC 285 | . 15 . 30 90 15 60 . 5 . 10 50 10 Destroy Leader 564 | . 16 30 88 244 92 6 10 20 . . 18 40 Allied During Kill 185 | . . . . . . 7 . . . . . 178 Successful Hack 191 | . 6 . 10 36 39 65 . . . . 30 5 Disable Machine 270 | . . . . 165 15 75 . . . . 15 . Destroy Structure 480 | . . . 49 165 43 63 . . . . 40 120 Advance Influence 150 | . . . . . . . . . . . 150 . Partial Spotted 15 | . . . . . 15 . . . . . . . Lose Combat Pursuer 285 | . 15 45 . 30 15 105 . . . . 30 45 Influence Decreases 4982 | . 172 235 320 855 1216 756 156 254 . 10 394 614 Entered New Map 1100 | . . . . 149 618 240 66 17 . . . 10 Time Decay 3341 | . 172 235 310 646 568 335 90 227 . 10 374 374 Lost Part 310 | . . . 10 60 30 10 . 10 . . 20 170 Lost Ally 80 | . . . . . . 20 . . . . . 60 Purge Threat 151 | . . . . . . 151 . . . . . . Squads Dispatched 30 | . 1 . 1 8 10 3 . . . . 5 2 Investigation 10 | . 1 . 1 2 4 . . . . . 1 1 Extermination 8 | . . . . . 3 2 . . . . 3 . Reinforcement 8 | . . . . 4 1 1 . . . . 1 1 Assault 4 | . . . . 2 2 . . . . . . . Garrison . | . . . . . . . . . . . . . Intercept . | . . . . . . . . . . . . . Searches Triggered . | . . . . . . . . . . . . . Construction Impeded 2 | . . . . 2 . . . . . . . . Haulers Reinforced . | . . . . . . . . . . . . . Active Scanning Responses . | . . . . . . . . . . . . . Cargo Convoy Interrupts 1 | . . . . . 1 . . . . . . . Stealth | -11 -10 -10 -9 -8 -7 -6 -6 -6 -6 -5 -5 -5 --------- Run | Yrd Mat Min Mat Mat Fac Fac Low Low Dat Pro Fac Ext Distress Signals 16 | . 3 . 1 4 2 1 . . . . 1 4 Communications Jammed . | . . . . . . . . . . . . . Distress Signals . | . . . . . . . . . . . . . Times Spotted 217 | . 14 10 26 65 21 19 3 6 3 2 10 38 Peak Tracking Total 12 | . 4 3 4 5 4 8 1 3 3 2 2 12 Tactical Retreats 12 | . 1 1 . 1 1 3 . . . . 2 3 Traps | -11 -10 -10 -9 -8 -7 -6 -6 -6 -6 -5 -5 -5 ------- Run | Yrd Mat Min Mat Mat Fac Fac Low Low Dat Pro Fac Ext Traps Triggered 11 | . 1 . 3 1 . . . . . . 4 2 Indirectly . | . . . . . . . . . . . . . Trap Hack Attempts . | . . . . . . . . . . . . . Triggered . | . . . . . . . . . . . . . Disarmed . | . . . . . . . . . . . . . Reprogrammed . | . . . . . . . . . . . . . Reused . | . . . . . . . . . . . . . Traps Extracted . | . . . . . . . . . . . . . Installed . | . . . . . . . . . . . . . Triggered . | . . . . . . . . . . . . . Machines | -11 -10 -10 -9 -8 -7 -6 -6 -6 -6 -5 -5 -5 ---------- Run | Yrd Mat Min Mat Mat Fac Fac Low Low Dat Pro Fac Ext Machines Disabled 21 | . . . . 12 1 5 . . 1 1 1 . Max in Single Turn 7 | . . . . 7 1 5 . . 1 1 1 . Garrison Access 1 | . . . . . . 1 . . . . . . Machines Repaired . | . . . . . . . . . . . . . Machines Dismantled . | . . . . . . . . . . . . . Machines Sabotaged . | . . . . . . . . . . . . . Overloaded Fab Kills . | . . . . . . . . . . . . . Hacking | -11 -10 -10 -9 -8 -7 -6 -6 -6 -6 -5 -5 -5 --------- Run | Yrd Mat Min Mat Mat Fac Fac Low Low Dat Pro Fac Ext Machines Accessed 57 | . 3 1 9 12 8 10 . . 3 . 9 2 Terminals 39 | . 3 1 8 10 4 6 . . . . 5 2 Fabricators 4 | . . . . . 2 1 . . . . 1 . Repair Stations 4 | . . . . . 2 1 . . . . 1 . Recycling Units . | . . . . . . . . . . . . . Scanalyzers 4 | . . . 1 2 . . . . . . 1 . Garrison Access 3 | . . . . . . 2 . . . . 1 . Total Hacks 196 | . 9 2 21 39 20 50 . . 21 . 29 5 Successful 101 | . 2 . 9 23 9 25 . . 21 . 11 1 Failed 94 | . 6 2 12 16 11 25 . . . . 18 4 Catastrophic 18 | . . . 3 3 3 4 . . . . 4 1 Database Lockouts 1 | . 1 . . . . . . . . . . . Manual 93 | . 10 2 10 29 5 21 . . . . 16 . Terminals 131 | . 9 2 15 33 9 36 . . . . 22 5 Fabricators 8 | . . . . . 5 2 . . . . 1 . Repair Stations 14 | . . . . . 6 5 . . . . 3 . Recycling Units . | . . . . . . . . . . . . . Scanalyzers 14 | . . . 6 6 . . . . . . 2 . Garrison Access 8 | . . . . . . 7 . . . . 1 . Terminal Hacks 47 | . 2 . 6 3 2 9 . . 21 . 3 1 Record 7 | . . . 1 . . . . . 6 . . . Part Schematic 11 | . . . 1 . . 1 . . 8 . 1 . Robot Schematic 4 | . . . . . . . . . 4 . . . Robot Analysis 3 | . 2 . 1 . . . . . . . . . Prototype ID Bank 4 | . . . 1 . . . . . 3 . . . Open Door 1 | . . . . . . . . . . . . 1 Branch Access Points 1 | . . . . 1 . . . . . . . . Machine Index 1 | . . . . . 1 . . . . . . . Terminal Index 4 | . . . . 1 1 1 . . . . 1 . Garrison Index 1 | . . . . . . 1 . . . . . . Alert Level 1 | . . . 1 . . . . . . . . . Unreport Threat 3 | . . . . . . 3 . . . . . . Locate Traps 1 | . . . . . . 1 . . . . . . Recall Extermination 1 | . . . . . . 1 . . . . . . Hauler Manifests 2 | . . . 1 1 . . . . . . . . Registered Components 1 | . . . . . . 1 . . . . . . Zone Layout 1 | . . . . . . . . . . . 1 . Fabricator Hacks 5 | . . . . . 3 1 . . . . 1 . Network Status 1 | . . . . . . 1 . . . . . . Load Schematic 2 | . . . . . 2 . . . . . . . Build 2 | . . . . . 1 . . . . . 1 . Repair Station Hacks 5 | . . . . . 2 2 . . . . 1 . Scan Component 4 | . . . . . 2 1 . . . . 1 . Repair 1 | . . . . . . 1 . . . . . . Recycling Unit Hacks . | . . . . . . . . . . . . . Scanalyzer 5 | . . . 1 3 . . . . . . 1 . Insert Component 4 | . . . 1 2 . . . . . . 1 . Analyze 1 | . . . . 1 . . . . . . . . Garrison Access Hacks 1 | . . . . . . 1 . . . . . . Seal Access 1 | . . . . . . 1 . . . . . . Unauthorized Hacks 38 | . . . 2 17 2 12 . . . . 5 . Terminals 37 | . . . 2 17 2 11 . . . . 5 . Assimilate 1 | . . . . 1 . . . . . . . . Botnet 20 | . . . 2 8 2 6 . . . . 2 . Skim 16 | . . . . 8 . 5 . . . . 3 . Fabricators 1 | . . . . . . 1 . . . . . . Liberate 1 | . . . . . . 1 . . . . . . Repair Stations . | . . . . . . . . . . . . . Recycling Units . | . . . . . . . . . . . . . Scanalyzers . | . . . . . . . . . . . . . Garrison Access . | . . . . . . . . . . . . . Data Cores Recovered 2 | . . . . 1 1 . . . . . . . Used 1 | . . . . 1 . . . . . . . . Hacking Detections 50 | . 2 1 9 12 8 8 . . . . 8 2 Full Trace Events 10 | . 2 . 1 2 4 . . . . . . 1 Feedback Events 1 | . . . 1 . . . . . . . . . Corruption 1 | . . . 1 . . . . . . . . . Feedback Blocked . | . . . . . . . . . . . . . Robot Schematics Acquired 4 | . . . . . . . . . 4 . . . Robots Built . | . . . . . . . . . . . . . Authchips . | . . . . . . . . . . . . . Time . | . . . . . . . . . . . . . Total Robot Build Rating . | . . . . . . . . . . . . . Part Schematics Acquired 12 | . . . 1 1 . 1 . . 8 . 1 . Parts Built 3 | . . . . . 1 . . . . . 2 . Authchips . | . . . . . . . . . . . . . Time 310 | . . . . . 204 . . . . . 106 . Total Part Build Rating 20 | . . . . . 8 . . . . . 12 . Parts Repaired 1 | . . . . . . 1 . . . . . . Time 30 | . . . . . . 30 . . . . . . Parts Recycled . | . . . . . . . . . . . . . Recycled Matter . | . . . . . . . . . . . . . Retrieved Matter . | . . . . . . . . . . . . . Retrieved Components . | . . . . . . . . . . . . . Parts Scanalyzed 1 | . . . 1 . . . . . . . . . Part Schematics Acquired 1 | . . . . 1 . . . . . . . . Parts Damaged 1 | . . . 1 . . . . . . . . . Bothacking | -11 -10 -10 -9 -8 -7 -6 -6 -6 -6 -5 -5 -5 ------------ Run | Yrd Mat Min Mat Mat Fac Fac Low Low Dat Pro Fac Ext Used RIF Installer . | . . . . . . . . . . . . . Robots Hacked . | . . . . . . . . . . . . . Non-combat . | . . . . . . . . . . . . . Combat . | . . . . . . . . . . . . . Robot Hacks Applied . | . . . . . . . . . . . . . Relay Couplers Released . | . . . . . . . . . . . . . Fabnet Peak Effective % . | . . . . . . . . . . . . . Robots Rewired 12 | . . . . . . . . . . . . 12 Allies Hacked . | . . . . . . . . . . . . . Hacks Repelled . | . . . . . . . . . . . . . Allies | -11 -10 -10 -9 -8 -7 -6 -6 -6 -6 -5 -5 -5 -------- Run | Yrd Mat Min Mat Mat Fac Fac Low Low Dat Pro Fac Ext Total Allies 16 | . . . . . . 3 . . . . . 13 Largest Group 12 | . . . . . . 3 . . . . . 12 Highest-Rated Group 357 | . . . . . . 87 . . . . . 357 Highest-Rated Ally 31 | . . . . . . 29 . . . . . 31 Total Orders . | . . . . . . . . . . . . . Ally Attacks 89 | . . . . . . . . . . . . 89 Total Damage 1472 | . . . . . . . . . . . . 1472 Kills 7 | . . . . . . . . . . . . 7 Allies Corrupted . | . . . . . . . . . . . . . Allies Melted . | . . . . . . . . . . . . . Intel | -11 -10 -10 -9 -8 -7 -6 -6 -6 -6 -5 -5 -5 ------- Run | Yrd Mat Min Mat Mat Fac Fac Low Low Dat Pro Fac Ext Active Infowar (turns) 5914 | . . 2 . . 1708 1017 191 760 148 344 867 877 Optics 4317 | . . . . . 113 1017 191 760 148 344 867 877 Sensors 3641 | . . 2 . . 595 981 176 737 29 328 779 14 Structural 4624 | . . . . . 1557 1017 191 760 41 197 729 132 Robot Analysis Total 3 | . 2 . 1 . . . . . . . . . Derelict Logs Recovered 4 | . . 1 . . . . 2 . . 1 . . Drone Launches . | . . . . . . . . . . . . . Drone Recoveries . | . . . . . . . . . . . . . Exploration | -11 -10 -10 -9 -8 -7 -6 -6 -6 -6 -5 -5 -5 ------------- Run | Yrd Mat Min Mat Mat Fac Fac Low Low Dat Pro Fac Ext Turns Passed 10690 | 2 957 566 898 2355 1708 1017 191 760 148 344 867 877 Spaces Moved 8850 | 1 723 388 446 1193 953 1465 363 806 129 643 1171 569 Core . | . . . . . . . . . . . . . Treads 2399 | . . 13 446 1193 747 . . . . . . . Legs 1099 | 1 723 375 . . . . . . . . . . Wheels . | . . . . . . . . . . . . . Hover 5352 | . . . . . 206 1465 363 806 129 643 1171 569 Flight . | . . . . . . . . . . . . . Fastest Speed 44 | 120 120 120 160 148 48 45 45 45 45 45 45 44 Average Speed 90 | 120 120 121 160 153 137 51 45 45 48 45 50 97 Slowest Speed 161 | 120 120 160 160 161 161 112 102 102 102 45 161 102 Overloaded Moves 8 | . . . . . . . . . . . . 8 Propulsion Burnouts . | . . . . . . . . . . . . . Robots Hopped . | . . . . . . . . . . . . . Potential Cave-ins 2 | . . . . . . . . . . 2 . . Cave-ins Triggered . | . . . . . . . . . . . . . Exploration Rate (%) 59 | 2 96 76 58 95 25 26 67 84 82 72 37 54 Regions Visited 12 Branch Regions 6 Pre-discovered Areas 3 | . . . . 2 . . . . 1 . . . Known Exits Taken 7 | . . . . . 1 1 1 1 1 1 1 . Unknown Exits Taken 5 | 1 1 1 1 1 . . . . . . . . Scrap Searched 10 | . . 1 . . . . 2 3 . 4 . . Spaces Dug 88 | . . . . 4 4 15 2 16 1 25 20 1 Terrain Destroyed 724 | . . . 44 162 54 62 76 93 1 106 20 106 Melee 51 | . . . . . 4 15 2 2 1 6 20 1 Projectile 40 | . . . . 40 . . . . . . . . AOE 633 | . . . 44 122 50 47 74 91 . 100 . 105 Terrain Rammed . | . . . . . . . . . . . . . Walls Destroyed . | . . . . . . . . . . . . . Machines Disabled . | . . . . . . . . . . . . . Actions | -11 -10 -10 -9 -8 -7 -6 -6 -6 -6 -5 -5 -5 --------- Run | Yrd Mat Min Mat Mat Fac Fac Low Low Dat Pro Fac Ext Total 10729 | 1 771 440 575 1495 1249 1626 380 1187 172 675 1359 799 Wait 877 | . 5 10 24 90 152 80 3 363 14 5 69 62 Move 8838 | . 722 387 445 1192 952 1464 362 805 128 642 1170 569 Hop . | . . . . . . . . . . . . . Pick Up 92 | . 5 2 23 17 20 6 1 . . 2 14 2 Fast Attach 20 | . 1 . 6 1 1 4 . 1 . 1 4 1 Attach 52 | . . 2 1 8 15 4 2 2 1 3 6 8 Detach 15 | . . . . . 5 2 2 2 1 3 . . Swap 112 | 1 4 6 18 22 20 3 2 4 4 6 15 7 Drop 104 | . 4 6 19 28 24 4 1 1 . 1 15 1 Fire 294 | . 22 26 35 124 56 5 5 6 . 5 . 10 Melee 185 | . . . . . 4 54 2 3 24 7 53 38 Ram . | . . . . . . . . . . . . . Kick 9 | . 8 1 . . . . . . . . . . Crush 17 | . . . 4 13 . . . . . . . . Escape Stasis 39 | . . . . . . . . . . . 13 26 Rewire 75 | . . . . . . . . . . . . 75 Trap . | . . . . . . . . . . . . . Miscellaneous . | . . . . . . . . . . . . . Route ------- -11/Scrapyard -10/Materials (discovered 5 exits: *Mat x3 / *Min / [*Sub]) -10/Mines -9/Materials (discovered 3 exits: *Mat x2 / *Min) -8/Materials (discovered 4 exits: *Fac x3 / *Sto) -7/Factory (discovered 2 exits: *Fac / *Low) -6/Factory (discovered 2 exits: Fac / *Low) -6/Lower Caves -6/Lower Caves -6/Data Miner -5/Proximity Caves -5/Factory (discovered 4 exits: [*Fac] / *Upp x2 / *Ext) -5/Extension (discovered 1 exit: Cet) History --------- Turn | Location | Event 3 | -11/Scrapyard | Discovered new exit (range 0) 3 | -11/Scrapyard | Entered Materials 4 | -10/Materials | Met a group of wandering Federalists 113 | -10/Materials | Discovered new exit (range 15) 151 | -10/Materials | Discovered new exit (range 5) 301 | -10/Materials | Central database locked down 476 | -10/Materials | Discovered new exit (range 15) 577 | -10/Materials | Build established: Scavenger-Mutant 618 | -10/Materials | Discovered new exit (range 11) 944 | -10/Materials | Discovered new exit (range 13) 960 | -10/Materials | Entered Mines 1070 | -10/Mines | Found a damaged Exp. Sensor Array with a note attached 1072 | -10/Mines | Found Prototype Device 1072 | -10/Mines | Identified Exp. Sensor Array 1192 | -10/Mines | Found a hidden stash of uninstalled traps 1355 | -10/Mines | YI-UF0 nonchalantly dropped a Grenade Launcher on the ground 1394 | -10/Mines | Discovered new exit (range 3) 1492 | -10/Mines | Core integrity fell below 50% 1501 | -10/Mines | Core integrity fell below 20% 1505 | -10/Mines | Destroyed YI-UF0 1526 | -10/Mines | Entered Materials 1526 | -9/Materials | Evolved 2 slots: Propulsion x2 1527 | -9/Materials | Identified exit to Mines 1531 | -9/Materials | Lost 4 parts (1p1n2w) 2035 | -9/Materials | Discovered new exit (range 16) 2099 | -9/Materials | Build established: Mutant 2363 | -9/Materials | Discovered new exit (range 13) 2424 | -9/Materials | Entered another Materials area 2424 | -8/Materials | Evolved 2 slots: Utility x2 2691 | -8/Materials | Identified exit to Storage 3072 | -8/Materials | Discovered new exit (range 16) 3127 | -8/Materials | Build established: Scavenger-Mutant 3453 | -8/Materials | Build established: Mutant 3867 | -8/Materials | Discovered new exit (range 7) 4290 | -8/Materials | Learned location of 1 exit from Extension 4296 | -8/Materials | Discovered new exit (range 10) 4322 | -8/Materials | Learned Factory fabricator intel 4356 | -8/Materials | Learned Factory recycling unit intel 4357 | -8/Materials | Learned location of 1 exit from Lower Caves 4360 | -8/Materials | Learned Storage security intel 4424 | -8/Materials | First assault squad dispatched 4583 | -8/Materials | Sterilization system engaged 4583 | -8/Materials | Non-combat units ordered to evacuate 4683 | -8/Materials | Combat units ordered to evacuate 4779 | -8/Materials | Entered Factory 4779 | -7/Factory | Evolved 2 slots: Utility x2 4780 | -7/Factory | Loaded intel: 6 fabricator locations 4781 | -7/Factory | Loaded intel: 6 recycling unit locations 5118 | -7/Factory | Discovered new exit (range 7) 5130 | -7/Factory | Identified exit to Lower Caves 5175 | -7/Factory | Found Prototype Launcher 5175 | -7/Factory | Identified Rocket Array 5508 | -7/Factory | Found Rocket Array 5739 | -7/Factory | Discovered new exit (range 15) 5761 | -7/Factory | Identified exit to Factory 6224 | -7/Factory | Cargo convoy interrupted 6272 | -7/Factory | Fabricated Exp. Sensor Array (x1) 6379 | -7/Factory | First assault squad dispatched 6487 | -7/Factory | Entered another Factory area 6487 | -6/Factory | Evolved 2 slots: Utility x2 6645 | -6/Factory | Repaired Broken Gravmag System 6905 | -6/Factory | Discovered new exit (range 6) 6907 | -6/Factory | Identified exit to Lower Caves 6948 | -6/Factory | Build established: Hacker-Scout 7289 | -6/Factory | Identified exit to Factory 7413 | -6/Factory | Learned location of 2 exits from Archives 7462 | -6/Factory | Learned Extension stockpile data 7502 | -6/Factory | Loaded intel: 4 scanalyzer locations 7504 | -6/Factory | Entered Lower Caves 7505 | -6/Lower Caves | Encountered a Warlord checkpoint 7505 | -6/Lower Caves | Identified exit to Lower Caves 7540 | -6/Lower Caves | Learned 4 Factory zone layouts 7599 | -6/Lower Caves | Learned Factory emergency access door positions 7695 | -6/Lower Caves | Entered another Lower Caves area 8391 | -6/Lower Caves | Discovered new exit (range 6) 8455 | -6/Lower Caves | Identified exit to Data Miner 8455 | -6/Lower Caves | Entered Data Miner 8455 | -6/Data Miner | Discovered new exit (range 6) 8461 | -6/Data Miner | Met Data Miner 8476 | -6/Data Miner | Learned location of Section 7 (-3) 8476 | -6/Data Miner | Acquired the access code to Warlord's prototype stash 8480 | -6/Data Miner | Received God Mode back door access code from Data Miner 8505 | -6/Data Miner | Data Conduit disabled 8603 | -6/Data Miner | Identified exit to Proximity Caves 8603 | -6/Data Miner | Entered Proximity Caves 8606 | -5/Proximity Caves | Spotter reported a threat 8651 | -5/Proximity Caves | Found Alien Artifact 8651 | -5/Proximity Caves | Identified Dimensional Node Initializer 8651 | -5/Proximity Caves | Initialized slip node 8834 | -5/Proximity Caves | Learned Factory stockpile data 8897 | -5/Proximity Caves | Discovered exit to Factory (range 9) 8947 | -5/Proximity Caves | Entered Factory 8947 | -5/Factory | Evolved 2 slots: Utility x2 8948 | -5/Factory | Identified exit to Upper Caves 9006 | -5/Factory | Discovered exit to Upper Caves (range 4) 9060 | -5/Factory | Build established: Scout 9247 | -5/Factory | Discovered new exit (range 12) 9339 | -5/Factory | Fabricated Mic. Fission Core (x2) 9765 | -5/Factory | Discovered new exit (range 18) 9813 | -5/Factory | Identified exit to Extension 9814 | -5/Factory | Entered Extension 9815 | -5/Extension | Identified exit to Cetus 9901 | -5/Extension | Disrupted transfer network 10040 | -5/Extension | Rescued a captive Derelict 10190 | -5/Extension | Lost 3 parts (3n) 10417 | -5/Extension | Build established: Commander-Gladiator 10660 | -5/Extension | Spotted B-75 Beast 10661 | -5/Extension | Spotted B-75 Beast 10672 | -5/Extension | Core integrity fell below 50% 10687 | -5/Extension | Allies destroyed B-75 Beast 10689 | -5/Extension | Core integrity fell below 20% 10691 | -5/Extension | Destroyed by B-75 Beast with Magnetic Acceleration Cannon Last Messages --------------- 10682_ Lyr. Medium Armor Plating destroyed. 10684_ Adv. System Shield destroyed. 10685_ Adv. Cooling System destroyed. 10685_ Knocked back. 10685_ Penetrated by Slug. 10686_ Imp. Actuator Array destroyed. 10687_ Penetrated by Slug. 10687_ Mic. Fission Core destroyed. 10687_ Slug penetrates B-75 Beast. 10687_ B-75 Beast suffers critical hit (Destroy). 10687_ B-75 Beast destroyed. 10687_ S-27 Virus destroyed. 10687_ Penetrated by Slug. 10688_ Hvy. Pick destroyed. 10688_ Critical hit (Meltdown: +320). 10688_ Knocked back. 10688_ Slug penetrates 1N-PF7(l). 10688_ 1N-PF7(l) destroyed. 10688_ Penetrated by Slug. 10691_ Phasing Sabre destroyed. Map ----- +----------------------------------------------------+ | # [ ############## !! T#???????????????????? | | # #????????????#!!! "#???????????????????? | | ########????????????#!!! ! "#???????????????????? | | ????????????????????# "#???????????????????? | | ????????????????????# ##???????????????????? | | ????????????????????# #????????????????????? | | ?????????????????####+##+## #????????????????????? | | ?????????????????# * # #????????????????????? | | ?????????????????# * !=+ #????????????????????? | | ?????????????????# # #????????????????????? | | ?????????????????# / ! #o#????????????????????? | | ?????????????????########## #????????????????????? | | ??????????????????????????? #????????????????????? | | ??????????????????????????? #??##?##???#?????????? | | ????????????????????????### ### ## ### ##????????? | | ????????????????????????#"" "" "" ""#???????? | | ????????????????????????# " " " " #???????? | | ????????????????????????# R #???????? | | ????????????????????##??# Y #???????? | | #####################;### Y #####???? | | g ???? | | gg h ??? | | l% ss ??? | | % %= !!h w ?? | | % ]!% % ?? | | ######################"##@=s* #???????? | | ????????????????????????#%%BB #???????? | | ????????????????????????#%sBB #???????? | | ????????????????????????# #???????? | | ????????????????????????# #???????? | | ????????????????????????######T#"""#######???????? | | ??????????????????????????????##?????????????????? | | ?????????????????????????????????????????????????? | | | | | | | | | | | | | | | | | | | | | | | | | | | | | | | | | | | +----------------------------------------------------+ Best States ------------- Heat Dissipation 78 Energy Generation 21 Energy Capacity 350 Matter Stores 300 Matter Capacity 300 Sight Range 22 Robot Scan Range 20 Terrain Scan Density 10 Additional Mass Support 6 EM Shielding 2 Armor Coverage 225 Resistance: EM 25 Utility Shielding 66 Evasion (%) 56 Melee Accuracy 8 Core Analysis 6 Recoil Reduction 4 Offensive Hacking 20 Defensive Hacking 14 Item Schematics ----------------- Lrg. Storage Unit | -9/Materials | Hacked Exp. Sensor Array | -8/Materials | Scanalyzed Aerolev Unit | -6/Factory | Hacked Combat Drone Bay | -6/Data Miner | Free Lgt. Regenerative Plating | -6/Data Miner | Free Enh. Flexi-carbon Leg | -6/Data Miner | Free Prc. Energy Filter | -6/Data Miner | Free Hvy. Gatling Laser | -6/Data Miner | Free Shield Leg | -6/Data Miner | Free Lrn. Sensor Array | -6/Data Miner | Free Adv. Datajack | -6/Data Miner | Free Com. HERF Cannon | -5/Factory | Hacked Robot Schematics ------------------ D-63 Destroyer | -6/Data Miner | Free R-10 Processor | -6/Data Miner | Free E-15 Imp | -6/Data Miner | Free B-48 Gladiator | -6/Data Miner | Free Fabricated ------------ Exp. Sensor Array | x1 | -7/Factory Mic. Fission Core | x2 | -5/Factory | Preloaded Repaired ---------- Gravmag System | 80% | -6/Factory | Broken Alien Tech Used ----------------- Dimensional Node Initializer Achievements -------------- None Challenges ------------ None Game ------ Seed RiotPropulsionSpoofer Manual? 0 Play Time 01:26:38 Cumulative 357.8 hours Start 2025.05.19 @ 10:01:40 End 2025.05.19 @ 13:54:38 Sessions 5 Manual Loads 0 Difficulty Rogue Special Mode None Game No. 458 Rogue 458 Adventurer 0 Explorer 0 Win Type - Total 28 Types 12/1/9/1/1/1/0/1/1/1 Lore% 86 Gallery% 78 Achievement% 76 Wizard Run 0 Options --------- Layout 0 ASCII 0 Keyboard 0 Movement Numpad Keybinds 0 Fullscreen 1 Font 18/SmallcapsGlow Map View 76x50 Zoom Use 0% Tactical HUD 1 Map Filters NONE Filters NONE Steam 1 RUN: 8479ba7f-8da4-4a17-9363-61800b7b1bbd